bitfinex/quotes_ETHUSD_20241105
["timestamp","ask_amount","ask_price","bid_price","bid_amount"]
[1730791789556,3.7592,2425.5,2425.1,6.06414493]
[1730791789867,7.88207,2425.5,2425.2,0.33354693]
[1730791790067,7.88207,2425.5,2425.1,6.06414493]
[1730791790391,7.88207,2425.5,2425.2,0.33359389]
[1730791790688,7.88207,2425.5,2425.3,0.33359342]
[1730791790884,7.88207,2425.5,2425.1,6.06415493]
[1730791791111,7.88207,2425.5,2425.2,0.3335909]
[1730791791309,7.88207,2425.5,2425.3,0.3335909]
[1730791791509,3.7592,2425.5,2425.1,6.06415493]
[1730791791713,3.7592,2425.5,2425.2,0.33361171]
[1730791791912,3.0,2425.5,2425.3,1.70574664]
[1730791792066,3.0,2425.5,2425.3,1.37213493]
[1730791793004,4.12271,2425.6,2425.1,4.69195]
[1730791793208,6.28571247,2425.6,2425.2,0.33358421]
[1730791793382,6.28571247,2425.6,2425.3,0.33358421]
[1730791793712,4.12271,2425.6,2425.1,6.06408493]
[1730791793867,10.40853247,2425.6,2425.2,0.33355097]
[1730791794070,10.40853247,2425.6,2425.3,0.33355097]
[1730791794308,4.12287,2425.5,2425.1,6.06408493]
[1730791794506,9.28571247,2425.6,2425.2,0.33353084]
[1730791794711,13.40851247,2425.6,2425.3,0.33353084]
[1730791794899,4.12286,2425.5,2425.1,6.06408493]
[1730791795211,7.12271,2425.6,2425.3,1.37213493]
[1730791795424,7.12271,2425.6,2425.4,0.33351918]
[1730791795706,7.12271,2425.6,2425.3,1.37213493]
[1730791796013,7.12271,2425.6,2425.4,0.33345491]
[1730791796313,13.40849247,2425.6,2425.3,1.37213493]
[1730791797117,7.12271,2425.6,2425.3,1.37213493]
[1730791797509,9.28571247,2425.6,2425.3,1.37213493]
[1730791797716,9.28729068,2425.6,2425.3,1.37213493]
[1730791798283,0.7928,2425.5,2425.1,5.49564493]
[1730791798505,4.91569,2425.5,2425.2,0.33336625]
[1730791798751,4.91569,2425.5,2425.3,0.33336625]
[1730791798960,4.91569,2425.5,2425.1,5.49564493]
[1730791799266,0.7928,2425.5,2425.3,1.37213493]
[1730791800570,9.28710567,2425.7,2425.3,1.94063493]
[1730791800740,2.16457567,2425.6,2425.3,1.94063493]
[1730791801068,10.41003567,2425.6,2425.3,1.94063493]
[1730791802377,2.16457567,2425.6,2425.3,1.94063493]
[1730791802567,2.16461713,2425.6,2425.3,1.94063493]
[1730791802874,6.28738713,2425.6,2425.3,1.94063493]
[1730791803767,2.16461713,2425.6,2425.3,1.94063493]
[1730791803977,2.16461713,2425.7,2425.3,6.06367493]
[1730791804266,2.16461713,2425.9,2425.5,5.49491493]
[1730791804466,6.28666713,2426.0,2425.6,5.02438872]
[1730791804670,6.28666713,2426.0,2425.7,1.37213493]
[1730791804843,2.16461713,2426.0,2425.7,1.37213493]
[1730791805252,7.03886713,2426.1,2425.7,5.49463493]
[1730791805429,2.91701713,2426.1,2425.7,5.49463493]
[1730791805631,7.03885713,2426.1,2425.7,5.49462493]
[1730791805832,2.16461713,2426.2,2425.9,1.37213493]
[1730791806258,6.28612713,2426.3,2425.9,1.37213493]
[1730791806472,2.16461713,2426.3,2425.7,1.94063493]
[1730791806692,0.8037,2425.9,2425.3,0.5685]
[1730791807001,4.12204,2426.0,2425.1,4.98901537]
[1730791807002,4.92646,2425.6,2425.2,1.37213493]
[1730791807555,0.8037,2425.6,2425.2,5.49545493]
[1730791807857,4.92641,2425.6,2425.2,5.49549493]
[1730791808051,4.92641,2425.6,2425.3,0.33297301]
[1730791808274,4.92641,2425.6,2425.2,5.49549493]
[1730791808663,4.92641,2425.6,2425.3,0.33298948]
[1730791808863,4.92641,2425.6,2425.2,1.37213493]
[1730791810109,4.92641,2425.6,2425.2,5.49548493]
[1730791810391,9.0492,2425.6,2425.2,1.37213493]
[1730791810599,4.92641,2425.6,2425.3,0.08245397]
[1730791811261,4.92641,2425.6,2425.2,1.37213493]
[1730791811797,0.8037,2425.6,2425.3,4.53870278]
[1730791812006,0.8037,2425.6,2425.3,4.20564398]
[1730791812152,2.1626099,2425.8,2425.5,4.12283]
[1730791812357,2.1626099,2426.0,2425.7,0.5685]
[1730791812711,7.0618699,2426.2,2425.7,4.69093]
[1730791812991,4.12201,2426.0,2425.7,0.5685]
[1730791813356,4.12186,2426.1,2425.7,0.5685]
[1730791813965,4.12186,2426.1,2425.7,4.691]
[1730791814474,7.0617899,2426.2,2425.8,5.49446493]
[1730791814703,4.89918,2426.2,2425.8,5.49446493]
[1730791815215,9.02094,2426.2,2425.8,1.37213493]
[1730791815578,4.89918,2426.2,2425.8,1.37213493]
[1730791815802,4.12193,2426.1,2425.8,1.37213493]
[1730791816016,0.7775,2426.2,2425.8,5.49447493]
[1730791816223,4.89924,2426.2,2425.8,5.49447493]
[1730791816379,4.89924,2426.2,2425.8,1.37213493]
[1730791816575,4.89924,2426.2,2425.8,5.49445493]
[1730791816879,4.12151,2426.3,2425.9,4.12215]
[1730791817103,9.28193692,2426.5,2426.0,6.06263493]
[1730791817286,3.0,2426.5,2426.2,1.37213493]
[1730791817514,7.05002692,2426.6,2426.2,1.37213493]
[1730791817735,0.7684,2426.6,2426.2,1.37213493]
[1730791817936,0.7684,2426.6,2426.2,5.49370493]
[1730791818213,4.88943,2426.6,2426.2,1.37213493]
[1730791818714,4.88943,2426.6,2426.2,5.49375493]
[1730791819431,0.7684,2426.6,2426.2,5.49375493]
[1730791820142,4.88949,2426.6,2426.2,1.37213493]
[1730791820498,0.7684,2426.6,2426.2,5.49377493]
[1730791820943,7.12083,2426.7,2426.3,4.68999]
[1730791821104,7.12083,2426.7,2426.3,0.5685]
[1730791821439,0.7508,2426.8,2426.0,6.06263493]
[1730791821651,4.12112,2426.6,2426.1,4.12173]
[1730791821833,4.12112,2426.6,2426.1,8.24348]
[1730791822002,4.12112,2426.6,2426.2,1.37213493]
[1730791822917,6.01166702,2426.8,2426.2,5.57614747]
[1730791822918,7.12085,2426.7,2426.2,5.57614747]
[1730791823679,3.0,2426.8,2426.4,5.49337493]
[1730791823802,0.7759,2427.0,2426.6,1.37213493]
[1730791824005,0.7759,2427.0,2426.4,1.37213493]
[1730791824203,4.87853,2426.6,2426.1,0.5685]
[1730791824439,8.99966,2426.6,2426.1,6.06246493]
[1730791824642,8.99961,2426.6,2426.1,6.06246493]
[1730791824852,4.12119,2426.5,2426.1,0.5685]
[1730791825006,4.12158,2426.3,2425.9,0.5685]
[1730791825205,0.7575,2426.2,2425.9,1.94063493]
[1730791826032,0.7575,2426.2,2425.9,6.06278493]
[1730791826253,5.1576653,2426.7,2425.9,0.5685]
[1730791826254,6.2784953,2426.7,2425.9,0.5685]
[1730791826450,4.12108,2426.6,2426.1,5.49386493]
[1730791826635,4.12117,2426.5,2426.1,5.49386493]
[1730791829636,4.87311,2426.6,2426.1,5.49386493]
[1730791830523,0.7521,2426.6,2426.2,4.12165]
[1730791830726,0.7521,2426.6,2426.2,4.77257403]
[1730791831355,4.8731,2426.6,2426.2,0.65092403]
[1730791831528,4.8731,2426.6,2426.2,0.5685]
[1730791832513,4.8731,2426.6,2426.2,4.77257405]
[1730791833050,4.8731,2426.6,2426.2,4.69015]
[1730791833264,4.12082,2426.7,2426.2,4.77257405]
[1730791833464,4.93366,2426.8,2426.3,5.49362493]
[1730791833612,3.0,2426.7,2426.3,5.49362493]
[1730791834154,4.12083,2426.7,2426.3,5.49362493]
[1730791834453,3.813,2426.8,2426.3,5.49362493]
[1730791834679,4.12091,2426.7,2426.2,4.69004]
[1730791835341,0.7841,2426.5,2426.0,0.5685]
[1730791835540,0.7841,2426.5,2425.7,4.1224]
[1730791835541,4.12167,2426.2,2425.8,0.5685]
[1730791835748,3.7841,2426.5,2425.9,1.4545709]
[1730791835924,7.12127,2426.5,2426.1,1.37213493]
[1730791837500,3.0,2426.5,2426.1,4.12183]
[1730791837657,7.12119,2426.5,2426.1,4.12183]
[1730791837858,7.12119,2426.5,2426.0,0.5685]
[1730791838100,3.0,2426.5,2426.1,4.12175]
[1730791838393,4.12112,2426.6,2426.3,0.5685]
[1730791839106,4.12073,2426.8,2426.4,4.12116]
[1730791839400,4.12073,2426.8,2426.3,0.5685]
[1730791839601,4.12073,2426.8,2426.3,4.68999]
[1730791839820,4.12059,2426.9,2426.4,4.12124]
[1730791840406,4.12066,2426.8,2426.4,4.12124]
[1730791841208,4.12059,2426.9,2426.4,4.12124]
[1730791841209,8.24122,2426.9,2426.4,4.20364665]
[1730791841507,4.12059,2426.9,2426.5,4.12113]
[1730791841713,4.9422,2427.0,2426.6,0.5685]
[1730791842878,8.24083,2427.0,2426.6,0.5685]
[1730791843071,4.1205,2426.9,2426.6,0.5685]
[1730791843270,4.1204,2427.0,2426.6,4.68947]
[1730791844335,4.1204,2427.0,2426.6,0.5685]
[1730791844839,4.1204,2427.0,2426.6,4.68947]
[1730791845497,3.0,2427.1,2426.6,4.68947]
[1730791845737,7.12014,2427.1,2426.6,4.6894]
[1730791846101,4.12007,2427.2,2426.8,4.12063]
[1730791846303,0.8123,2427.3,2426.9,0.5685]
[1730791846516,4.93215,2427.3,2426.9,0.5685]
[1730791846720,4.93215,2427.3,2426.9,4.68896]
[1730791846917,4.93215,2427.3,2426.9,0.5685]
[1730791847216,9.05207,2427.3,2426.9,0.5685]
[1730791847550,5.71301765,2427.4,2426.9,0.5685]
[1730791847702,9.83265765,2427.4,2426.9,4.68884]
[1730791847902,6.83265765,2427.4,2426.9,4.68884]
[1730791848143,4.11964,2427.4,2426.9,4.68884]
[1730791849311,4.11981,2427.3,2426.9,4.68884]
[1730791850618,4.11964,2427.4,2426.9,4.68884]
[1730791850825,4.11964,2427.4,2426.9,0.5685]
[1730791851133,4.11964,2427.4,2427.0,4.1203]
[1730791851368,9.00032,2427.5,2427.0,4.1203]
[1730791851892,9.00038,2427.5,2427.0,4.1203]
[1730791852177,4.88076,2427.5,2427.0,4.1203]
[1730791852680,4.88076,2427.5,2427.0,4.1202]
[1730791852985,4.11956,2427.5,2427.1,4.12012]
[1730791853153,4.11956,2427.5,2427.2,0.5685]
[1730791854451,7.89513,2427.7,2427.2,0.5685]
[1730791854452,3.7759,2427.7,2427.2,0.5685]
[1730791854639,4.11968,2427.4,2427.2,0.5685]
[1730791854836,4.11968,2427.4,2427.0,0.5685]
[1730791855294,4.11989,2427.3,2427.0,0.5685]
[1730791859290,0.7759,2427.4,2426.8,0.5685]
[1730791859499,0.7759,2427.4,2426.5,4.12105]
[1730791859500,4.89762,2427.1,2426.6,4.68947]
[1730791860191,0.7774,2427.1,2426.7,4.12082]
[1730791860379,8.2402,2427.2,2426.7,4.12073]
[1730791860584,4.12007,2427.2,2426.7,4.12073]
[1730791860808,4.12007,2427.2,2426.7,9.61231914]
[1730791861116,3.0,2427.3,2426.8,0.5685]
[1730791861290,3.0,2427.3,2426.9,4.12046]
[1730791862804,4.1194,2427.6,2427.1,5.49097914]
[1730791863180,4.1194,2427.6,2427.2,4.68844]
[1730791863919,2.15693487,2427.7,2427.3,4.1198]
[1730791864121,4.11906,2427.8,2427.3,5.49067914]
[1730791864481,4.95089,2427.9,2427.4,4.1196]
[1730791864726,4.95089,2427.9,2427.5,0.5685]
[1730791865381,4.11915,2427.7,2427.3,4.6883]
[1730791865577,4.11903,2427.8,2427.3,4.6883]
[1730791865805,4.11913,2427.7,2427.3,4.6883]
[1730791866413,4.11903,2427.8,2427.3,4.6883]
[1730791866414,4.11896,2427.8,2427.3,4.6883]
[1730791866735,4.11896,2427.8,2427.3,8.80799]
[1730791867028,4.11896,2427.8,2427.3,8.8079]
[1730791867389,8.23806,2427.8,2427.3,4.68819]
[1730791867920,4.11896,2427.8,2427.3,4.68819]
[1730791868121,4.11896,2427.8,2427.3,8.80789]
[1730791868626,4.11896,2427.8,2427.4,4.11959]
[1730791870193,4.11896,2427.8,2427.3,8.80801]
[1730791870734,4.11896,2427.8,2427.3,8.80791]
[1730791870896,4.11896,2427.8,2427.4,4.11956]
[1730791871842,4.11896,2427.8,2427.3,4.68819]
[1730791872197,4.11896,2427.8,2427.4,4.11963]
[1730791872398,4.11896,2427.8,2427.3,4.68819]
[1730791872838,4.9509,2427.9,2427.4,4.11961]
[1730791873727,4.9509,2427.9,2427.5,4.11945]
[1730791873975,7.1424497,2428.0,2427.6,0.5685]
[1730791874178,11.2611697,2428.0,2427.6,0.5685]
[1730791874344,4.11887,2427.9,2427.6,0.5685]
[1730791875467,7.1424297,2428.0,2427.6,0.5685]
[1730791876185,11.2611897,2428.0,2427.6,0.5685]
[1730791876342,7.1424297,2428.0,2427.6,0.5685]
[1730791876773,11.2611897,2428.0,2427.6,0.5685]
[1730791876975,4.11879,2427.9,2427.6,0.5685]
[1730791878501,4.11895,2427.8,2427.6,0.5685]
[1730791878707,4.11931,2427.6,2427.1,4.12002]
[1730791878996,4.11931,2427.6,2427.2,0.5685]
[1730791878997,4.11948,2427.5,2427.2,0.5685]
[1730791879655,4.11931,2427.6,2427.2,0.5685]
[1730791879859,4.11931,2427.6,2427.2,4.68845]
[1730791881195,4.11931,2427.6,2427.2,0.5685]
[1730791882495,4.11949,2427.5,2427.2,0.5685]
[1730791882796,4.11967,2427.4,2427.0,0.5685]
[1730791883885,4.11967,2427.4,2427.0,4.68879]
[1730791884563,4.11967,2427.4,2427.1,0.33260465]
[1730791884861,4.11967,2427.4,2427.0,4.68879]
[1730791885262,4.11967,2427.4,2427.1,0.33262201]
[1730791885461,4.11967,2427.4,2427.0,4.68879]
[1730791885707,0.7703,2427.5,2427.1,0.33263738]
[1730791885708,4.88977,2427.5,2427.1,0.33263738]
[1730791885908,4.88977,2427.5,2427.0,4.68879]
[1730791886200,4.88977,2427.5,2427.1,4.53508102]
[1730791886201,0.7703,2427.5,2427.1,4.53508102]
[1730791886413,4.1194,2427.6,2427.2,0.33263648]
[1730791886608,4.1194,2427.6,2427.1,0.08239454]
[1730791886908,7.11921,2427.7,2427.3,0.5685]
[1730791888710,4.1188,2427.9,2427.4,4.11955]
[1730791889219,4.1188,2427.9,2427.3,0.5685]
[1730791889220,4.11934,2427.6,2427.3,0.5685]
[1730791890315,4.11934,2427.6,2427.1,4.12002]
[1730791890604,4.1193,2427.6,2427.2,0.33287267]
[1730791890809,4.1193,2427.6,2427.1,4.68852]
[1730791890969,4.1193,2427.6,2427.2,0.33286372]
[1730791891169,4.1193,2427.6,2427.1,4.68852]
[1730791891395,4.1193,2427.6,2427.2,0.33287908]
[1730791891622,4.1193,2427.6,2427.1,4.68852]
[1730791891924,4.1193,2427.6,2427.2,0.3329776]
[1730791892127,4.1193,2427.6,2427.1,4.68852]
[1730791892270,4.1193,2427.6,2427.2,0.33308578]
[1730791892473,4.1193,2427.6,2427.2,4.11995]
[1730791892709,4.1193,2427.6,2427.1,4.68852]
[1730791893010,4.1193,2427.6,2427.2,0.33308212]
[1730791893214,4.1193,2427.6,2427.1,8.80856]
[1730791893215,4.1193,2427.6,2427.3,0.33313714]
[1730791893427,4.1193,2427.6,2427.1,6.05939914]
[1730791893588,4.1193,2427.6,2427.2,0.33314099]
[1730791893791,4.1193,2427.6,2427.1,6.05939914]
[1730791894120,4.1193,2427.6,2427.2,0.33313955]
[1730791894324,4.1193,2427.6,2427.3,0.33313955]
[1730791894473,4.1193,2427.6,2427.1,10.17945914]
[1730791894674,4.1193,2427.6,2427.2,0.3331307]
[1730791894913,4.1193,2427.6,2427.1,10.17945914]
[1730791894914,4.1193,2427.6,2427.3,0.3331307]
[1730791895119,4.1193,2427.6,2427.1,10.17945914]
[1730791895421,4.1193,2427.6,2427.2,0.33312995]
[1730791895578,4.11928,2427.7,2427.3,0.33312995]
[1730791895778,4.11928,2427.7,2427.4,0.33312995]
[1730791896002,4.11928,2427.7,2427.3,4.11978]
[1730791896201,4.11928,2427.7,2427.4,0.33310547]
[1730791896403,4.11924,2427.7,2427.2,4.11996]
[1730791896609,4.1193,2427.6,2427.3,0.3331052]
[1730791896774,4.1193,2427.6,2427.4,0.3331052]
[1730791896974,4.1193,2427.6,2427.2,0.53298969]
[1730791897174,4.11924,2427.7,2427.3,0.33312646]
[1730791897471,4.11924,2427.7,2427.4,0.33312646]
[1730791897676,4.11924,2427.7,2427.2,4.11987]
[1730791897926,4.11924,2427.7,2427.3,0.33311939]
[1730791898133,4.11924,2427.7,2427.4,0.33311939]
[1730791898415,4.11924,2427.7,2427.2,4.11987]
[1730791898585,4.11924,2427.7,2427.3,0.33312362]
[1730791898794,4.11924,2427.7,2427.4,0.33312362]
[1730791898992,4.11924,2427.7,2427.2,4.11987]
[1730791899305,4.11924,2427.7,2427.3,0.33312369]
[1730791899616,8.23845,2427.7,2427.4,0.33312369]
[1730791899826,8.23845,2427.7,2427.2,4.11987]
[1730791900119,4.11921,2427.7,2427.3,0.33312904]
[1730791900321,4.11921,2427.7,2427.4,0.33312904]
[1730791900619,4.11921,2427.7,2427.3,0.5685]
[1730791900791,4.11921,2427.7,2427.4,0.33312783]
[1730791900994,4.11921,2427.7,2427.3,0.5685]
[1730791901380,4.11921,2427.7,2427.4,0.33312841]
[1730791901612,4.11921,2427.7,2427.3,0.5685]
[1730791901816,4.11921,2427.7,2427.4,0.33313713]
[1730791902112,4.11921,2427.7,2427.3,0.5685]
[1730791902325,5.16036647,2427.9,2427.4,0.33313758]
[1730791902550,7.11886,2427.9,2427.5,0.33313758]
[1730791902821,7.11886,2427.9,2427.4,8.23907]
[1730791903017,7.11886,2427.9,2427.5,0.33311888]
[1730791903174,7.11886,2427.9,2427.4,4.11953]
[1730791903375,3.0,2427.9,2427.5,0.33310446]
[1730791903575,3.0,2427.9,2427.4,4.11953]
[1730791903576,4.11896,2427.8,2427.4,4.11953]
[1730791903878,4.11896,2427.8,2427.5,0.33311065]
[1730791904082,4.11896,2427.8,2427.4,4.11953]
[1730791904383,4.11896,2427.8,2427.5,0.33312201]
[1730791904583,4.11896,2427.8,2427.4,4.11953]
[1730791904821,4.11896,2427.8,2427.5,0.33311217]
[1730791904994,4.11896,2427.8,2427.4,4.11953]
[1730791905207,4.11896,2427.8,2427.5,0.33311202]
[1730791905410,4.11896,2427.8,2427.4,4.11953]
[1730791905735,4.11896,2427.8,2427.5,0.33310759]
[1730791906027,4.11896,2427.8,2427.4,4.11953]
[1730791906234,9.27916647,2427.9,2427.5,0.3331075]
[1730791906437,9.27916647,2427.9,2427.4,4.11953]
[1730791906733,9.27916647,2427.9,2427.5,0.33310788]
[1730791906923,9.27916647,2427.9,2427.5,0.5685]
[1730791907120,6.27916647,2427.9,2427.5,0.5685]
[1730791908056,2.16036647,2427.9,2427.5,0.5685]
[1730791908219,2.16036647,2427.9,2427.6,4.45237629]
[1730791908413,4.1423397,2428.0,2427.6,4.11918]
[1730791908414,5.18407617,2428.0,2427.6,4.11918]
[1730791908612,2.18407617,2428.0,2427.8,0.5685]
[1730791908918,0.21625237,2428.0,2427.8,0.5685]
[1730791909222,3.41043976,2428.2,2427.8,0.5685]
[1730791909223,4.93628,2428.2,2427.8,0.5685]
[1730791909556,4.11828,2428.2,2427.8,4.68745]
[1730791909754,4.11847,2428.1,2427.8,0.5685]
[1730791910248,4.11827,2428.2,2427.8,0.5685]
[1730791910458,4.11852,2428.1,2427.8,0.5685]
[1730791910609,4.11852,2428.1,2427.5,5.49031914]
[1730791910610,4.87242,2428.1,2427.6,0.5685]
[1730791910816,4.1187,2428.0,2427.6,0.5685]
[1730791912149,4.87242,2428.1,2427.6,0.5685]
[1730791912449,4.87242,2428.1,2427.6,4.68771]
[1730791913163,8.99096,2428.1,2427.6,4.68771]
[1730791913459,4.11852,2428.1,2427.7,4.11904]
[1730791915963,6.27997573,2428.1,2427.7,4.11904]
[1730791918674,6.27997573,2428.1,2427.6,0.5685]
[1730791918675,4.11864,2428.0,2427.6,0.5685]
[1730791920178,4.11864,2428.0,2427.6,4.68775]
[1730791920337,8.23734,2428.0,2427.6,0.5685]
[1730791920528,4.11864,2428.0,2427.6,0.5685]
[1730791920732,10.39779304,2428.2,2427.7,4.45193603]
[1730791920957,4.11845,2428.1,2427.7,4.11911]
[1730791921372,4.11845,2428.1,2427.6,0.5685]
[1730791921677,4.11845,2428.1,2427.7,0.33283378]
[1730791922006,4.11863,2428.0,2427.6,4.68778]
[1730791922878,4.11863,2428.0,2427.7,0.3328547]
[1730791923080,4.11863,2428.0,2427.6,4.68778]
[1730791924162,4.11863,2428.0,2427.7,0.33293534]
[1730791924480,4.11863,2428.0,2427.6,4.6877]
[1730791924686,6.27881533,2428.2,2427.7,4.45201878]
[1730791924835,6.27881533,2428.2,2427.7,4.11908]
[1730791925154,4.11845,2428.1,2427.7,4.11908]
[1730791925538,2.16045658,2428.2,2427.8,4.11887]
[1730791925780,2.16045658,2428.3,2427.9,4.45172859]
[1730791925933,6.27847658,2428.4,2427.9,4.45172527]
[1730791926139,10.05063658,2428.5,2428.0,0.5685]
[1730791926349,6.27846658,2428.4,2428.0,0.5685]
[1730791926537,4.11801,2428.4,2428.0,0.5685]
[1730791926768,6.27846658,2428.4,2428.0,0.5685]
[1730791927439,6.27846658,2428.4,2428.0,4.68708]
[1730791927440,4.11801,2428.4,2428.0,4.68708]
[1730791927778,4.11801,2428.4,2428.0,0.5685]
[1730791928078,6.27846658,2428.4,2428.0,0.5685]
[1730791928238,4.11801,2428.4,2428.0,0.5685]
[1730791929676,5.93172167,2428.5,2428.0,0.5685]
[1730791929677,10.04950167,2428.5,2428.1,4.11843]
[1730791931502,3.0,2428.5,2428.1,4.11843]
[1730791931687,10.39483167,2428.6,2428.2,0.5685]
[1730791931688,2.15942167,2428.6,2428.2,0.5685]
[1730791931894,2.15942167,2428.8,2428.5,0.5685]
[1730791932095,7.03462167,2428.9,2428.5,0.5685]
[1730791932267,4.11726,2428.8,2428.5,0.5685]
[1730791933001,8.23463,2428.8,2428.5,0.5685]
[1730791933203,4.11726,2428.8,2428.5,0.5685]
[1730791934982,4.8753,2428.9,2428.5,0.5685]
[1730791935607,4.1172,2428.9,2428.5,0.5685]
[1730791935907,4.11726,2428.8,2428.5,0.5685]
[1730791937292,4.11709,2428.9,2428.5,0.5685]
[1730791938280,4.11702,2429.0,2428.5,4.68617]
[1730791938481,8.23402,2429.0,2428.5,4.68617]
[1730791938688,4.117,2429.0,2428.5,4.68617]
[1730791939717,4.117,2429.0,2428.6,4.11759]
[1730791939949,4.1761676,2429.2,2428.8,0.5685]
[1730791940294,4.1761676,2429.2,2428.8,4.68571]
[1730791940627,0.0594476,2429.2,2428.9,4.11698]
[1730791940792,0.0594476,2429.2,2428.8,0.5685]
[1730791940978,0.0594476,2429.2,2429.1,6.05612914]
[1730791941182,0.0594476,2429.2,2429.1,4.76757508]
[1730791941484,0.0594476,2429.2,2429.1,5.23525]
[1730791942183,0.0594476,2429.2,2429.1,6.60612914]
[1730791945543,0.0594476,2429.2,2429.1,9.69844632]
[1730791945761,4.1741176,2430.4,2430.0,0.5685]
[1730791945900,8.2887976,2430.4,2430.0,0.5685]
[1730791946097,4.1741176,2430.4,2430.0,0.5685]
[1730791946335,0.0594476,2430.4,2430.1,4.11497]
[1730791946553,0.0594476,2430.4,2430.2,4.11484]
[1730791946698,0.0594476,2430.4,2430.3,5.48558914]
[1730791946898,0.0594476,2430.4,2430.3,6.05408914]
[1730791947341,0.0594476,2430.4,2430.3,4.68321]
[1730791950147,0.0594476,2430.4,2430.1,0.5685]
[1730791951069,0.0594476,2430.4,2429.8,7.28840659]
[1730791951276,0.7934,2430.2,2429.8,0.5685]
[1730791951476,4.11566,2429.8,2429.6,0.5685]
[1730791951761,0.7934,2430.2,2429.6,0.5685]
[1730791951762,4.11534,2430.0,2429.6,0.5685]
[1730791952568,4.90839,2430.2,2429.7,4.11568]
[1730791952569,4.11499,2430.2,2429.7,4.11568]
[1730791952936,4.11499,2430.2,2429.6,4.6843]
[1730791953280,4.11499,2430.2,2429.7,4.11565]
[1730791953972,4.11489,2430.2,2429.7,4.11561]
[1730791954267,7.11474,2430.3,2429.7,4.11561]
[1730791954969,3.0,2430.3,2429.9,0.5685]
[1730791955470,0.0594476,2430.4,2429.9,0.5685]
[1730791955680,4.1739976,2430.4,2429.9,0.5685]
[1730791955968,0.0594476,2430.4,2430.0,4.11508]
[1730791956171,0.0594476,2430.4,2430.0,8.23019]
[1730791956333,0.0594476,2430.4,2429.9,0.5685]
[1730791956538,4.1740876,2430.4,2429.9,0.5685]
[1730791957071,0.0594476,2430.4,2430.0,4.11522]
[1730791957433,4.1739976,2430.4,2429.9,0.5685]
[1730791957635,4.1739976,2430.4,2429.9,4.68388]
[1730791958859,0.0594476,2430.4,2430.0,4.1152]
[1730791959438,4.1739976,2430.4,2430.0,4.1152]
[1730791960152,8.2886476,2430.4,2429.9,4.68389]
[1730791960383,8.2886476,2430.4,2429.9,0.5685]
[1730791960384,4.1739976,2430.4,2429.9,0.5685]
[1730791960588,8.2886276,2430.4,2429.9,4.68385]
[1730791960756,4.1739976,2430.4,2429.9,4.68385]
[1730791960957,8.2886676,2430.4,2429.9,0.5685]
[1730791961465,4.1739976,2430.4,2429.9,0.5685]
[1730791961686,4.1739976,2430.4,2429.9,4.68389]
[1730791963501,4.11477,2430.3,2429.9,0.5685]
[1730791963676,0.7617,2430.2,2429.8,4.11543]
[1730791963875,0.7617,2430.2,2429.7,4.68418]
[1730791963876,4.87664,2430.2,2429.7,4.68418]
[1730791964265,4.11508,2430.1,2429.7,0.5685]
[1730791965505,4.11508,2430.1,2429.8,0.33009717]
[1730791965704,4.11508,2430.1,2429.7,0.5685]
[1730791965903,4.11508,2430.1,2429.8,0.33010183]
[1730791966200,4.87659,2430.2,2429.7,4.68422]
[1730791966499,0.7617,2430.2,2429.8,4.52805325]
[1730791966699,0.7617,2430.2,2429.8,4.19784282]
[1730791967411,0.7617,2430.2,2429.9,0.33059254]
[1730791967592,0.7617,2430.2,2430.0,0.33060459]
[1730791967772,0.7617,2430.2,2429.8,8.23097]
[1730791967985,0.7617,2430.2,2429.9,0.33061876]
[1730791968201,0.7617,2430.2,2429.8,4.11543]
[1730791968406,0.7617,2430.2,2429.9,0.85999336]
[1730791968611,0.7617,2430.2,2430.0,0.33060618]
[1730791968793,0.7617,2430.2,2430.1,0.33087901]
[1730791969319,0.7617,2430.2,2430.1,0.3312292]
[1730791972410,4.1148,2430.3,2430.1,0.86221735]
[1730791972613,4.1148,2430.3,2430.2,0.3312292]
[1730791973496,0.8152476,2430.4,2430.2,0.3312292]
[1730791973705,4.9298076,2430.4,2430.3,0.3312292]
[1730791973898,7.9298076,2430.4,2430.3,0.3312292]
[1730791975280,9.13423736,2430.4,2430.3,0.3312292]
[1730791975484,4.11492,2430.2,2429.7,0.5685]
[1730791975714,4.11492,2430.2,2429.8,0.86384334]
[1730791975921,3.8152476,2430.4,2429.7,4.68422]
[1730791975922,4.11483,2430.3,2429.9,0.86384334]
[1730791976083,4.11518,2430.1,2430.0,0.86384334]
[1730791976685,8.23038,2430.1,2430.0,0.86384334]
[1730791977186,9.897338,2430.1,2430.0,0.86384334]
[1730791977387,9.897338,2430.1,2430.0,0.33224499]
[1730791978113,5.782138,2430.1,2430.0,0.33224499]
[1730791978321,4.11475,2430.3,2429.8,4.11547]
[1730791978588,4.91105,2430.3,2429.9,4.11539]
[1730791978789,8.2886676,2430.4,2429.9,4.19760071]
[1730791978987,4.11479,2430.3,2429.8,8.23095]
[1730791979203,4.11479,2430.3,2429.8,4.11547]
[1730791979531,4.11479,2430.3,2429.8,8.23094]
[1730791979687,4.11479,2430.3,2429.9,0.86438342]
[1730791979885,4.1739876,2430.4,2429.9,4.97965342]
[1730791980123,4.1739876,2430.4,2430.0,0.86438342]
[1730791980301,4.1739876,2430.4,2430.1,0.86438342]
[1730791980504,4.11472,2430.3,2430.2,0.86438342]
[1730791980831,4.1740876,2430.4,2430.2,0.86438342]
[1730791981030,4.11471,2430.3,2429.8,4.11554]
[1730791981236,4.11471,2430.3,2429.9,0.8644277]
[1730791981407,4.11471,2430.3,2430.0,0.8644277]
[1730791981607,4.11471,2430.3,2430.1,0.8644277]
[1730791981920,4.11471,2430.3,2430.2,0.8644277]
[1730791982124,4.089511,2430.3,2430.2,0.8644277]
[1730791982431,4.1740076,2430.4,2430.2,0.8644277]
[1730791982642,4.1740076,2430.4,2430.3,0.33246975]
[1730791982931,0.0594476,2430.4,2430.3,0.33246975]
[1730791983119,0.0594476,2430.4,2430.3,0.86447949]
[1730791984428,0.0594476,2430.4,2430.3,0.86455623]
[1730791984634,0.0594476,2430.4,2430.3,0.33246975]